lending/lending_fUSD_20251020
["ID","MTS","AMOUNT","RATE_DAILY","PERIOD"]
[391914942,1760981827801,151.0,0.00034351,30]
[391914943,1760981828292,500.0,0.00034351,30]
[391914944,1760981828490,151.0,0.00034351,30]
[391914945,1760981828938,500.0,0.00034351,30]
[391914946,1760981829123,151.0,0.00034351,30]
[391914947,1760981829278,334.60535933,0.00034351,30]
[391914948,1760981829314,500.46962057,0.00034351,30]
[391914949,1760981829564,250.0,0.00034351,30]
[391914950,1760981829764,151.0,0.00034351,30]
[391914951,1760981830208,250.0,0.00034351,30]
[391914952,1760981830297,500.0,0.00034351,30]
[391914953,1760981830396,151.0,0.00034351,30]
[391914954,1760981830827,250.0,0.00034351,30]
[391914955,1760981830968,500.0,0.00034351,30]
[391914956,1760981831480,250.0,0.00034351,30]
[391914957,1760981831792,520.0,0.00034351,30]
[391914958,1760981831838,151.0,0.00034351,30]
[391914959,1760981832111,250.0,0.00034351,30]
[391914960,1760981832488,151.0,0.00034351,30]
[391914961,1760981832737,250.0,0.00034351,30]
[391914962,1760981833007,247.56527552,0.00034351,30]
[391914963,1760981833138,151.0,0.00034351,30]
[391914964,1760981833427,250.0,0.00034351,30]
[391914965,1760981834220,250.0,0.00034351,30]
[391914966,1760981834913,250.0,0.00034351,30]
[391914967,1760981835168,243.88261027,0.00034351,30]
[391914968,1760981835773,250.0,0.00034351,30]
[391914969,1760981836195,250.0,0.00034351,30]
[391914970,1760981836921,269.34200479,0.00034351,30]
[391914971,1760981837640,500.0,0.00034351,30]
[391914972,1760981837729,500.0,0.00034351,30]
[391914973,1760981838306,500.0,0.00034351,30]
[391914974,1760981838494,500.0,0.00034351,30]
[391914975,1760981838939,500.0,0.00034351,30]
[391914976,1760981839143,500.0,0.00034351,30]
[391914977,1760981839726,188.6424668,0.00034351,30]
[391914978,1760981839782,500.0,0.00034351,30]
[391914979,1760981840146,500.0,0.00034351,30]
[391914980,1760981840399,500.0,0.00034351,30]
[391914981,1760981840775,500.0,0.00034351,30]
[391914982,1760981841040,500.0,0.00034351,30]
[391914983,1760981841407,500.0,0.00034351,30]
[391914984,1760981841710,500.0,0.00034351,30]
[391914985,1760981842080,500.0,0.00034351,30]
[391914986,1760981842365,500.0,0.00034351,30]
[391914987,1760981842725,500.0,0.00034351,30]
[391914988,1760981843009,500.0,0.00034351,30]
[391914989,1760981843057,250.0,0.00034351,30]
[391914990,1760981843387,500.0,0.00034351,30]
[391914991,1760981843664,500.0,0.00034351,30]
[391914992,1760981843707,250.0,0.00034351,30]
[391914993,1760981844402,250.0,0.00034351,30]
[391914994,1760981844588,500.0,0.00034351,30]
[391914995,1760981844844,500.0,0.00034351,30]
[391914996,1760981845077,250.0,0.00034351,30]
[391914997,1760981845241,500.0,0.00034351,30]
[391914998,1760981845486,500.0,0.00034351,30]
[391914999,1760981846241,500.0,0.00034351,30]
[391915000,1760981846278,500.0,0.00034352,30]
[391915001,1760981846799,500.0,0.00034352,30]
[391915002,1760981847441,500.0,0.00034352,30]
[391915003,1760981848088,500.0,0.00034352,30]
[391915004,1760981848728,500.0,0.00034352,30]
[391915005,1760981849399,500.0,0.00034352,30]
[391915006,1760981850054,500.0,0.00034352,30]
[391915007,1760981850727,500.0,0.00034352,30]
[391915025,1760982125580,404.22581024,0.00034352,30]
[391915026,1760982126181,6888.0,0.00034352,30]
[391915027,1760982126620,639.13420249,0.00034352,30]
[391915028,1760982126664,277.35679052,0.00034352,59]
[391915029,1760982126841,7142.856,0.00034352,30]
[391915030,1760982127491,7407.141672,0.00034352,30]
[391915031,1760982127754,500.0,0.00034352,30]
[391915032,1760982128183,7681.20591386,0.00034352,30]
[391915033,1760982128424,500.0,0.00034352,30]
[391915034,1760982128851,7965.41053268,0.00034352,30]
[391915035,1760982129492,8260.13072239,0.00034352,30]
[391915036,1760982130152,8565.75555911,0.00034352,30]
[391915038,1760982130961,8882.6885148,0.00034352,30]
[391915039,1760982131802,9211.34798985,0.00034352,30]
[391915040,1760982132295,9552.16786547,0.00034352,30]
[391915041,1760982134841,175.39793187,0.00034352,30]
[391915042,1760982134892,152.97120212,0.00034352,30]
[391915087,1760982631957,-1991.59859926,0.00019295,2]
[391915088,1760982631967,-195.0,0.00019395,2]
[391915089,1760982631978,-1200.0,0.00020318,2]
[391915090,1760982631987,-300.0,0.00020318,2]
[391915091,1760982631997,-2500.0,0.00020319,2]
[391915092,1760982632010,-195.0,0.00020319,2]
[391915093,1760982632020,-300.0,0.00020319,2]
[391915094,1760982632030,-250.0,0.00020319,2]
[391915095,1760982632039,-296.0,0.00022116,2]
[391915096,1760982632048,-1680.0,0.00022222,2]
[391915097,1760982632059,-553.29457342,0.00022696,2]
[391915098,1760982632070,-2351.0,0.00024305,2]
[391915099,1760982632080,-250.45610049,0.00024691,2]
[391915100,1760982632090,-500.0,0.00024932,2]
[391915101,1760982632099,-500.0,0.00024932,2]
[391915102,1760982632110,-500.0,0.00024932,2]
[391915103,1760982632120,-500.0,0.00025673,2]
[391915104,1760982632129,-348.9,0.00025673,2]
[391915105,1760982632139,-637.34393449,0.00025699,2]
[391915106,1760982632149,-205.1680116,0.00025699,2]
[391915107,1760982632159,-314.77,0.00025699,2]
[391915108,1760982632170,-999.99,0.000257,2]
[391915109,1760982632182,-2076.61,0.000257,2]
[391915110,1760982632193,-924.16,0.000257,2]
[391915111,1760982632204,-1542.73,0.000257,2]
[391915112,1760982632215,-28544.04,0.000257,2]
[391915113,1760982632224,-1163.9,0.000257,2]
[391915115,1760982632233,-150.99,0.000257,2]
[391915117,1760982632243,-9999.99,0.000257,2]
[391915119,1760982632255,-2349.05,0.000257,2]
[391915121,1760982632266,-2933.88,0.000257,2]
[391915123,1760982632275,-3789.25,0.000257,2]
[391915125,1760982632285,-1290.14,0.000257,2]
[391915127,1760982632295,-1000.0,0.00026221,2]
[391915128,1760982632304,-3292.0,0.00026584,2]
[391915130,1760982632316,-151.0,0.00026628,2]
[391915132,1760982632326,-151.0,0.00026628,2]
[391915134,1760982632339,-151.0,0.00026628,2]
[391915136,1760982632348,-151.0,0.00026628,2]
[391915138,1760982632358,-151.0,0.00026628,2]
[391915140,1760982632367,-151.0,0.00026628,2]
[391915141,1760982632376,-151.0,0.00026628,2]
[391915143,1760982632385,-151.0,0.00026628,2]
[391915145,1760982632395,-151.0,0.00026628,2]
[391915147,1760982632404,-151.0,0.00026628,2]
[391915149,1760982632414,-151.0,0.00026628,2]
[391915152,1760982632423,-151.0,0.00026628,2]
[391915154,1760982632432,-151.0,0.00026628,2]
[391915156,1760982632442,-151.0,0.00026628,2]
[391915158,1760982632451,-151.0,0.00026628,2]
[391915160,1760982632460,-154.93545532,0.00026628,2]
[391915162,1760982632469,-1500.0,0.00026768,2]
[391915164,1760982632479,-505.09838233,0.00027316,2]
[391915166,1760982632488,-746.0,0.000282,3]
[391915168,1760982632498,-5513.0,0.000285,5]
[391915170,1760982632509,-1874.0,0.00029076,2]
[391915172,1760982632518,-500.0,0.00029512,7]
[391915174,1760982632528,-500.0,0.00029626,7]
[391915176,1760982632538,-500.0,0.00029935,7]
[391915178,1760982632547,-166.66,0.00030061,30]
[391915180,1760982632556,-207.41673535,0.000302,2]
[391915182,1760982632566,-403.36,0.00030228,30]
[391915184,1760982632575,-21764.53,0.00030309,2]
[391915186,1760982632584,-250.0,0.00030332,7]
[391915188,1760982632595,-500.0,0.00030368,7]
[391915189,1760982632604,-2732.11,0.0003037,2]
[391915192,1760982632614,-200.0,0.00030489,2]
[391915193,1760982632625,-500.0,0.00030546,7]
[391915196,1760982632635,-500.0,0.0003058,7]
[391915198,1760982632645,-166.66,0.00030694,30]
[391915199,1760982632655,-500.0,0.00030952,7]
[391915201,1760982632664,-166.44,0.00031068,2]
[391915203,1760982632674,-500.0,0.00031163,7]
[391915204,1760982632684,-2000.0,0.000312,2]
[391915205,1760982632694,-500.0,0.00031205,7]
[391915206,1760982632703,-166.66,0.00031327,30]
[391915207,1760982632713,-272.0,0.00031408,2]
[391915208,1760982632723,-1000.0,0.00031528,2]
[391915209,1760982632732,-300.0,0.00031698,2]
[391915210,1760982632742,-166.66,0.0003196,30]
[391915211,1760982632753,-753.0,0.00031999,2]
[391915212,1760982632762,-500.0,0.0003214,7]
[391915213,1760982632772,-177.0,0.00032429,2]
[391915214,1760982632782,-500.0,0.00032505,7]
[391915215,1760982632791,-1000.0,0.0003256,2]
[391915216,1760982632801,-166.66,0.00032593,30]
[391915217,1760982632811,-172.38372829,0.000326,120]
[391915218,1760982632820,-239.82497878,0.000326,120]
[391915219,1760982632830,-259.40141527,0.000326,120]
[391915220,1760982632839,-171.14830439,0.000326,120]
[391915221,1760982632849,-163.42277425,0.000326,120]
[391915222,1760982632858,-659.20949375,0.000326,120]
[391915223,1760982632867,-4940.91432241,0.000326,120]
[391915224,1760982632877,-500.0,0.00032743,5]
[391915225,1760982632886,-500.0,0.0003275,7]
[391915226,1760982632896,-166.44,0.00032777,2]
[391915227,1760982632905,-352.18,0.00032955,2]
[391915228,1760982632913,-546.76,0.00032955,2]
[391915229,1760982632922,-177.0,0.00033024,7]
[391915230,1760982632932,-300.0,0.00033068,2]
[391915231,1760982632941,-166.66,0.00033226,30]
[391915232,1760982632950,-1120.29905785,0.00033271,2]
[391915234,1760982632960,-178.0,0.00033277,2]
[391915236,1760982632970,-5000.0,0.00033309,2]
[391915238,1760982632979,-500.0,0.00033339,7]
[391915239,1760982632989,-768.54,0.00033347,2]
[391915240,1760982632999,-177.0,0.00033472,7]
[391915242,1760982633011,-177.0,0.00033499,2]
[391915244,1760982633021,-239.82497878,0.000335,120]
[391915246,1760982633031,-659.20949375,0.000335,120]
[391915248,1760982633040,-4940.91432241,0.000335,120]
[391915249,1760982633049,-150.62,0.00033507,2]
[391915250,1760982633060,-500.0,0.00033605,7]
[391915251,1760982633069,-178.0,0.00033663,2]
[391915253,1760982633079,-2300.48606084,0.00033676,2]
[391915255,1760982633089,-461.9325,0.00033676,2]
[391915257,1760982633099,-2300.48606082,0.00033734,2]
[391915259,1760982633108,-500.0,0.00033773,5]
[391915261,1760982633118,-160.03365728,0.00033773,5]
[391915263,1760982633128,-227.49127313,0.00033775,7]
[391915265,1760982633138,-534.17338807,0.00033775,7]
[391915267,1760982633147,-500.0,0.00033776,8]
[391915269,1760982633158,-500.0,0.00033776,8]
[391915271,1760982633167,-500.0,0.00033776,8]
[391915273,1760982633177,-500.0,0.00033776,2]
[391915275,1760982633186,-500.0,0.00033776,8]
[391915277,1760982633195,-500.0,0.00033776,7]
[391915278,1760982633205,-100350.47650517,0.00033776,2]
[391915281,1760982633219,-40454.80326067,0.00033776,2]
[391915282,1760982633228,-2300.48606082,0.00033793,2]
[391915283,1760982633238,-225.59904388,0.00033834,2]
[391915284,1760982633247,-2300.48606082,0.00033851,2]
[391915285,1760982633260,-177.0,0.00033896,7]
[391915286,1760982633270,-168.32,0.000339,2]
[391915287,1760982633279,-2300.48606082,0.0003391,2]
[391915288,1760982633288,-177.0,0.00033934,2]
[391915289,1760982633298,-2300.48606082,0.00033968,2]
[391915290,1760982633307,-200.0,0.00034027,10]
[391915291,1760982633318,-2300.48606082,0.00034027,2]
[391915292,1760982633329,-2300.48606082,0.00034085,2]
[391915293,1760982633341,-1000.0,0.00034096,2]
[391915294,1760982633352,-2300.48606082,0.00034144,2]
[391915295,1760982633361,-500.0,0.00034188,7]
[391915296,1760982633372,-1000.0,0.00034193,2]
[391915297,1760982633381,-454.5289,0.00034202,2]
[391915298,1760982633390,-3312.4653976,0.00034202,2]
[391915299,1760982633404,-8075.6940024,0.00034202,2]
[391915300,1760982633413,-5000.0,0.00034202,2]
[391915301,1760982633423,-175.54368315,0.00034202,30]
[391915302,1760982633433,-175.54368315,0.00034202,30]
[391915303,1760982633442,-175.54368315,0.00034202,30]
[391915304,1760982633452,-175.54368315,0.00034202,30]
[391915305,1760982633462,-175.54368315,0.00034202,30]
[391915306,1760982633473,-175.54368315,0.00034202,30]
[391915307,1760982633482,-175.54368315,0.00034202,30]
[391915308,1760982633493,-175.54368315,0.00034202,30]
[391915309,1760982633502,-175.54368315,0.00034202,30]
[391915310,1760982633512,-175.54368315,0.00034202,30]
[391915311,1760982633521,-175.54368315,0.00034202,30]
[391915312,1760982633531,-175.54368315,0.00034202,30]
[391915313,1760982633541,-175.54368315,0.00034202,30]
[391915314,1760982633551,-175.54368315,0.00034202,30]
[391915315,1760982633560,-175.54368315,0.00034202,30]
[391915316,1760982633570,-175.54368315,0.00034202,30]
[391915317,1760982633580,-175.54368315,0.00034202,30]
[391915318,1760982633591,-175.54368315,0.00034202,30]
[391915319,1760982633601,-175.54368315,0.00034202,30]
[391915320,1760982633611,-175.54,0.00034202,30]
[391915321,1760982633621,-2300.48606082,0.00034202,2]
[391915322,1760982633769,-167.33477334,0.00034202,2]
[391915323,1760982633779,-2000.0,0.00034222,3]
[391915324,1760982633789,-2000.0,0.00034222,3]
[391915325,1760982633798,-786.0,0.00034269,2]
[391915326,1760982633807,-2050.0,0.00034269,2]
[391915327,1760982633817,-3410.0,0.00034269,2]
[391915328,1760982633827,-705.116,0.00034269,2]
[391915329,1760982633837,-1546.0,0.00034269,2]
[391915330,1760982633846,-1309.0,0.00034269,2]
[391915331,1760982633856,-1268.0,0.00034269,2]
[391915332,1760982633866,-6440.0,0.00034269,2]
[391915333,1760982633876,-2591.0,0.00034269,2]
[391915334,1760982633885,-500.0,0.00034273,5]
[391915335,1760982633895,-152.1388613,0.0003429,2]
[391915336,1760982633905,-3594.3277542,0.0003429,2]
[391915337,1760982633915,-3586.2182631,0.0003429,2]
[391915338,1760982633926,-1194.1794463,0.0003429,2]
[391915339,1760982633935,-2953.63485868,0.0003429,2]
[391915340,1760982633951,-1649.24590002,0.0003429,2]
[391915341,1760982633961,-2426.274729,0.0003429,2]
[391915342,1760982633971,-181.6702256,0.0003429,2]
[391915343,1760982633982,-500.0,0.00034291,8]
[391915344,1760982633991,-500.0,0.00034291,8]
[391915345,1760982634001,-500.0,0.00034291,8]
[391915346,1760982634012,-529.3621,0.00034291,2]
[391915347,1760982634022,-500.0,0.00034291,8]
[391915348,1760982634031,-500.0,0.00034291,8]
[391915349,1760982634041,-500.0,0.00034291,8]
[391915350,1760982634051,-227.02159984,0.00034291,2]
[391915351,1760982634064,-272.97840016,0.00034291,2]
[391915352,1760982634074,-500.0,0.00034291,8]
[391915353,1760982634084,-500.0,0.00034291,8]
[391915354,1760982634093,-215.11368239,0.00034291,7]
[391915355,1760982634114,-284.88631761,0.00034291,7]
[391915356,1760982634123,-500.0,0.00034291,7]
[391915357,1760982634133,-241.05377133,0.00034292,2]
[391915358,1760982634143,-150.27,0.00034292,2]
[391915359,1760982634153,-150.27,0.00034292,2]
[391915360,1760982634164,-150.27,0.00034292,2]
[391915361,1760982634174,-150.27,0.00034292,2]
[391915362,1760982634183,-150.27,0.00034292,2]
[391915363,1760982634193,-150.27,0.00034292,2]
[391915364,1760982634202,-168.32,0.00034292,2]
[391915365,1760982634215,-168.32,0.00034292,2]
[391915366,1760982634225,-168.32,0.00034292,2]
[391915367,1760982634234,-2509.81473186,0.000343,2]
[391915368,1760982634322,-1837.53114483,0.000343,2]
[391915370,1760982637836,-151.0,0.00032877,30]
[391915371,1760982637846,-937.546,0.00034269,2]
[391915372,1760982637856,-1468.04220025,0.000343,2]
[391915373,1760982637942,-3948.19490268,0.000343,2]
[391915374,1760982637998,-974.85101943,0.000343,2]
[391915375,1760982638008,-1000.0,0.00034301,30]
[391915376,1760982638023,-500.0,0.00034301,8]
[391915377,1760982638032,-500.0,0.00034301,8]
[391915378,1760982638042,-500.0,0.00034301,8]
[391915379,1760982638051,-2087.48,0.00034301,120]
[391915381,1760982638061,-500.0,0.00034301,8]
[391915383,1760982638071,-500.0,0.00034301,8]
[391915385,1760982638081,-563.4569,0.00034301,2]
[391915387,1760982638090,-150.0,0.00034301,2]
[391915389,1760982638100,-150.0,0.00034301,2]
[391915391,1760982638109,-242.0,0.00034301,5]
[391915393,1760982638119,-11516.967754,0.00034301,31]
[391915394,1760982638129,-16120.74622183,0.00034302,120]
[391915396,1760982638140,-718.2,0.00034302,120]
[391915405,1760982639967,-1448.0,0.00034302,120]
[391915417,1760982640073,-12178.42901939,0.00034302,120]
[391915418,1760982640180,-2988.93535884,0.00034302,120]
[391915419,1760982640191,-7092.86162411,0.00034302,120]
[391915420,1760982640202,-4033.6906338,0.00034302,120]
[391915421,1760982640288,-819.86034757,0.00034302,120]
[391915422,1760982640299,-1490.7699429,0.00034302,120]
[391915437,1760982642977,-152.0,0.00034071,3]
[391915438,1760982642986,-2547.0,0.00034269,2]
[391915439,1760982642996,-16258.8123163,0.00034302,120]
[391915440,1760982643031,-11012.0,0.00034302,120]
[391915441,1760982643042,-608.41110405,0.00034302,120]
[391915442,1760982643054,-38772.99457634,0.00034302,120]
[391915443,1760982643186,-2755.7028,0.00034302,120]
[391915444,1760982643241,-20774.09846351,0.00034302,120]
[391915446,1760982643296,-544.2950181,0.00034302,120]
[391915455,1760982645966,-1093.5530219,0.00034202,2]
[391915456,1760982645978,-2727.98558855,0.00034202,2]
[391915457,1760982646022,-933.14790751,0.00034202,2]
[391915458,1760982646033,-2310.28332296,0.00034202,2]
[391915459,1760982646044,-7069.31902532,0.00034202,2]
[391915460,1760982646054,-1000.0,0.00034301,30]
[391915461,1760982646063,-1329.34123021,0.00034302,120]
[391915463,1760982665124,284.66289255,0.000275,120]
[391915466,1760982713399,275.96,0.00013699,2]
[391915467,1760982725635,322.6107,0.00034352,30]
[391915468,1760982726298,600.0,0.00034352,30]
[391915469,1760982726957,600.0,0.00034352,30]
[391915470,1760982728140,600.0,0.00034352,30]
[391915471,1760982728584,200.0,0.00034352,30]
[391915472,1760982729153,151.0,0.00034352,30]
[391915473,1760982729788,151.0,0.00034352,30]
[391915474,1760982730443,151.0,0.00034352,30]
[391915475,1760982731079,151.0,0.00034352,30]
[391915476,1760982731722,151.0,0.00034352,30]
[391915477,1760982732020,200.0,0.00034352,30]
[391915478,1760982732390,151.0,0.00034352,30]
[391915479,1760982733033,151.0,0.00034352,30]
[391915480,1760982733718,151.0,0.00034352,30]
[391915481,1760982734386,151.0,0.00034352,30]
[391915482,1760982735046,151.0,0.00034352,30]
[391915483,1760982735709,200.0,0.00034352,30]
[391915484,1760982735751,151.0,0.00034352,30]
[391915485,1760983025411,334.5472959,0.00034352,30]
[391915486,1760983025550,600.0,0.00034352,30]
[391915494,1760983831998,-250.0,0.00017,2]
[391915495,1760983832009,-431.9940252,0.000187,2]
[391915496,1760983832019,-746.27736787,0.000189,2]
[391915497,1760983832030,-178.81849316,0.00019,2]
[391915499,1760983832043,-121.18150684,0.00019,2]
[391915502,1760983832053,-347.31312086,0.0002,2]
[391915504,1760983832066,-152.68687914,0.0002,2]
[391915505,1760983832076,-150.0,0.000201,2]
[391915506,1760983832085,-275.96,0.00020187,2]
[391915507,1760983832095,-1000.0,0.00021096,2]
[391915508,1760983832104,-502.11772232,0.00022192,2]
[391915509,1760983832114,-300.0,0.00024139,2]
[391915510,1760983832123,-430.0,0.00024139,2]
[391915511,1760983832133,-1258.89,0.0002414,2]
[391915512,1760983832142,-1635.08509866,0.0002414,2]
[391915513,1760983832158,-513.80035925,0.0002414,2]
[391915514,1760983832169,-1359.28629547,0.0002414,2]
[391915515,1760983832182,-615.20801912,0.0002414,2]
[391915516,1760983832195,-302.61183806,0.0002414,2]
[391915517,1760983832207,-5573.99838944,0.0002414,2]
[391915518,1760983832217,-2397.24910707,0.00024141,2]
[391915519,1760983832229,-1020.46388477,0.00024141,2]
[391915520,1760983832238,-45.17674637,0.00025,10]
[391915521,1760983832251,-104.82325363,0.00025,10]
[391915522,1760983832261,-275.96,0.00026676,2]
[391915523,1760983832275,-2166.831954,0.000276,5]
[391915524,1760983832287,-3346.168046,0.000276,5]
[391915525,1760983832297,-173.71,0.00028876,2]
[391915526,1760983832307,-151.0,0.00029,2]
[391915527,1760983832317,-151.0,0.00029,2]
[391915528,1760983832326,-151.0,0.00029,2]
[391915530,1760983832336,-137.32923609,0.00029,2]
[391915532,1760983832347,-13.67076391,0.00029,2]
[391915534,1760983832358,-163.85502309,0.00029,2]
[391915536,1760983832367,-3169.50633795,0.00029017,2]
[391915539,1760983832378,-1650.0,0.00029017,2]
[391915541,1760983832389,-6108.6692828,0.00029017,2]
[391915543,1760983832401,-431.9940252,0.00029017,2]
[391915545,1760983832421,-365.186577,0.00029017,2]
[391915547,1760983832432,-824.38783658,0.00029017,2]
[391915549,1760983832443,-332.52,0.00029017,2]
[391915551,1760983832455,-1786.633875,0.00029017,2]
[391915595,1760983838084,-540.8148351,0.00029017,2]
[391915596,1760983838094,-153.0,0.00029088,30]
[391915597,1760983838104,-168.88822331,0.0002915,5]
[391915598,1760983838121,-331.69344946,0.0002915,5]
[391915599,1760983838131,-500.0,0.0002915,3]
[391915600,1760983838142,-500.0,0.0002915,5]
[391915601,1760983838152,-500.0,0.0002915,5]
[391915602,1760983838162,-421.87768396,0.0002915,2]
[391915603,1760983838171,-480.76052159,0.0002915,5]
[391915604,1760983838190,-19.23947841,0.0002915,5]
[391915605,1760983838203,-300.11107617,0.00029477,7]
[391915607,1760983838215,-500.0,0.00029485,7]
[391915609,1760983838225,-500.0,0.00029556,7]
[391915611,1760983838236,-577.95237234,0.00029698,5]
[391915613,1760983838245,-1000.0,0.00029698,5]
[391915615,1760983838255,-1500.0,0.00030246,5]
[391915617,1760983838265,-1155.83932311,0.00030437,2]
[391915619,1760983838275,-500.0,0.00030691,7]
[391915621,1760983838285,-2000.0,0.00030794,5]
[391915623,1760983838295,-500.0,0.00030962,7]
[391915625,1760983838307,-860.0,0.0003116,7]
[391915628,1760983838317,-2251.48074963,0.00031341,2]
[391915631,1760983838328,-500.0,0.00031345,7]
[391915633,1760983838338,-1000.0,0.000315,2]
[391915635,1760983838349,-860.0,0.00031514,2]
[391915637,1760983838359,-500.0,0.00031609,2]
[391915639,1760983838370,-500.0,0.00031609,2]
[391915641,1760983838379,-500.0,0.00031609,2]
[391915643,1760983838389,-500.0,0.00031609,2]
[391915645,1760983838398,-500.0,0.00031609,2]
[391915647,1760983838409,-500.0,0.00031609,2]
[391915649,1760983838418,-500.0,0.00031609,2]
[391915651,1760983838427,-500.0,0.00031609,2]
[391915653,1760983838437,-291.55967199,0.00031609,2]
[391915655,1760983838446,-500.0,0.00031609,2]
[391915657,1760983838457,-473.74,0.0003161,2]
[391915659,1760983838467,-344.9,0.0003161,2]
[391915661,1760983838476,-250.0,0.00031628,2]
[391915663,1760983838486,-500.0,0.00031744,7]
[391915665,1760983838496,-501.71292426,0.00031775,5]
[391915667,1760983838505,-500.0,0.00031775,2]
[391915669,1760983838514,-860.0,0.000318,2]
[391915671,1760983838524,-1563.75268475,0.00032008,2]
[391915673,1760983838533,-1000.0,0.000322,2]
[391915675,1760983838543,-167.66,0.00032298,2]
[391915677,1760983838553,-1050.25,0.00032518,2]
[391915679,1760983838562,-200.0,0.00032554,2]
[391915681,1760983838571,-395.52569625,0.000326,120]
[391915683,1760983838581,-7650.55149661,0.000326,120]
[391915685,1760983838591,-454.0,0.00032616,7]
[391915687,1760983838600,-860.0,0.00032656,2]
[391915689,1760983838610,-168.0,0.00032659,2]
[391915691,1760983838620,-500.0,0.0003266,2]
[391915693,1760983838630,-500.0,0.00032721,7]
[391915695,1760983838639,-860.0,0.00032741,2]
[391915697,1760983838649,-860.0,0.00032759,7]
[391915700,1760983838658,-860.0,0.00032768,7]
[391915702,1760983838668,-151.0,0.00032877,30]
[391915704,1760983838677,-783.0,0.00032935,2]
[391915706,1760983838686,-783.0,0.00033122,7]
[391915708,1760983838696,-275.96,0.00033165,2]
[391915710,1760983838705,-454.0,0.00033286,2]
[391915712,1760983838715,-1000.0,0.00033303,2]
[391915714,1760983838731,-10637.95,0.00033303,2]
[391915718,1760983838755,-666.0,0.00033303,3]
[391915721,1760983838772,-7553.38,0.00033303,2]
[391915723,1760983838786,-500.0,0.00033309,7]
[391915726,1760983838803,-500.0,0.00033423,7]
[391915729,1760983838819,-454.0,0.00033469,2]
[391915731,1760983838836,-395.52569625,0.000335,120]
[391915734,1760983838852,-500.0,0.00033664,7]
[391915736,1760983838865,-1000.0,0.00033676,2]
[391915739,1760983838880,-18378.9647,0.00033676,2]
[391915742,1760983838896,-3458.21664835,0.00033676,2]
[391915793,1760983839393,-1106.22376828,0.00033676,2]
[391915883,1760983840168,-2935.92391661,0.00033676,2]
[391915885,1760983840179,-375.72499965,0.00033676,2]
[391915888,1760983840192,-4182.46806711,0.00033676,2]
[391915890,1760983840201,-2037.4847309,0.00033676,2]
[391915892,1760983840210,-500.0,0.00033722,7]
[391915894,1760983840220,-501.8975631,0.00033776,8]
[391915896,1760983840229,-500.0,0.00033776,8]
[391915898,1760983840239,-500.0,0.00033776,8]
[391915900,1760983840248,-15.54975726,0.00033776,8]
[391915913,1760983840360,-484.45024274,0.00033776,8]
[391915915,1760983840370,-500.0,0.00033776,8]
[391915917,1760983840379,-500.0,0.00033776,8]
[391915919,1760983840389,-500.0,0.00033776,8]
[391915921,1760983840398,-317.03,0.00033794,2]
[391915923,1760983840408,-176.18,0.00033794,2]
[391915925,1760983840417,-300.0,0.00033794,2]
[391915926,1760983840427,-545.93,0.00033794,2]
[391915928,1760983840437,-336.7,0.00033794,2]
[391915931,1760983840447,-168.35,0.00033794,2]
[391915933,1760983840456,-914.26,0.00033794,2]